bitfinex-derivatives/quotes_BTCF0:USTF0_20241116
["timestamp","ask_amount","ask_price","bid_price","bid_amount"]
[1731729433300,0.3608,91346.0,91344.0,0.01710741]
[1731729433502,0.3608,91346.0,91345.0,0.01710741]
[1731729434001,0.3608,91346.0,91342.0,0.17067365]
[1731729434312,0.1304908,91345.0,91343.0,0.02737217]
[1731729434517,0.1304908,91345.0,91344.0,0.0171076]
[1731729434707,0.1304908,91345.0,91344.0,0.04447979]
[1731729435201,0.3608,91346.0,91344.0,0.04447979]
[1731729435405,0.3608,91346.0,91345.0,0.04447979]
[1731729435611,0.3608,91346.0,91345.0,0.04447981]
[1731729436311,0.5241719,91346.0,91345.0,0.04447981]
[1731729436617,0.41402122,91346.0,91340.0,0.10272]
[1731729436806,0.3608,91341.0,91340.0,0.10272]
[1731729437112,0.41402253,91341.0,91340.0,0.10272]
[1731729437416,0.3608,91341.0,91340.0,0.10272]
[1731729438213,0.3608,91341.0,91336.0,0.10272]
[1731729438214,0.4140226,91341.0,91336.0,0.10272]
[1731729438514,0.3608,91341.0,91337.0,0.02737524]
[1731729438813,0.3608,91341.0,91336.0,0.29926115]
[1731729439021,0.3608,91341.0,91337.0,0.02737524]
[1731729439203,0.3608,91341.0,91336.0,0.29926115]
[1731729439712,0.3608,91341.0,91336.0,0.10272]
[1731729440512,0.3608,91341.0,91337.0,0.19654115]
[1731729440815,0.3608,91341.0,91338.0,0.02737531]
[1731729441015,0.3608,91357.0,91340.0,0.56793676]
[1731729441319,0.3608,91357.0,91351.0,0.3000782]
[1731729441511,0.3608,91357.0,91353.0,0.19650982]
[1731729442117,0.3608,91357.0,91355.0,0.19650982]
[1731729442513,0.3608,91357.0,91356.0,0.19650982]
[1731729443316,0.3608,91357.0,91352.0,0.14765153]
[1731729443617,0.3608,91357.0,91353.0,0.02736851]
[1731729443926,0.3608,91357.0,91354.0,0.02736851]
[1731729444120,0.3608,91357.0,91353.0,0.26201142]
[1731729444121,0.3608,91357.0,91355.0,0.02736851]
[1731729444322,0.3608,91357.0,91353.0,0.26201142]
[1731729444511,0.3608,91357.0,91354.0,0.28937938]
[1731729444715,0.3608,91357.0,91355.0,0.02736796]
[1731729444915,0.3608,91357.0,91356.0,0.02736796]
[1731729445815,0.3608,91357.0,91356.0,0.02736688]
[1731729446426,0.3608,91357.0,91353.0,0.00595127]
[1731729446627,0.3608,91357.0,91354.0,0.02736653]
[1731729446827,0.3608,91357.0,91355.0,0.02736653]
[1731729447028,0.3608,91357.0,91356.0,0.05916653]
[1731729448625,0.3608,91357.0,91356.0,0.07627054]
[1731729449618,0.3608,91357.0,91356.0,0.07627035]
[1731729450324,0.3608,91357.0,91356.0,0.14311035]
[1731729450626,0.3608,91357.0,91356.0,0.04447035]
[1731729450826,0.3608,91357.0,91356.0,0.01710398]
[1731729452123,0.3608,91357.0,91341.0,0.2023979]
[1731729452324,0.3608,91346.0,91344.0,0.04447712]
[1731729452531,0.3608,91346.0,91345.0,0.01710686]
[1731729452914,0.3608,91346.0,91338.0,0.04359262]
[1731729453123,0.3608,91346.0,91339.0,0.01710742]
[1731729453520,0.3608,91346.0,91340.0,0.21355584]
[1731729453719,0.3608,91346.0,91341.0,0.01710807]
[1731729453920,0.3608,91346.0,91342.0,0.01710807]
[1731729454126,0.3608,91346.0,91343.0,0.01710807]
[1731729454332,0.3608,91346.0,91344.0,0.01710807]
[1731729454528,0.3608,91346.0,91345.0,0.01710807]
[1731729455931,0.3608,91346.0,91343.0,0.19644842]
[1731729456231,0.3608,91346.0,91344.0,0.01710808]
[1731729456538,0.3608,91344.0,91332.0,0.19644842]
[1731729456724,0.3608,91333.0,91331.0,0.10374]
[1731729456924,0.3608,91333.0,91332.0,0.19652068]
[1731729457128,0.3608,91333.0,91331.0,0.29516068]
[1731729457334,0.3608,91333.0,91332.0,0.19652068]
[1731729458431,0.3608,91333.0,91332.0,0.21362981]
[1731729458633,0.3608,91333.0,91331.0,0.09864]
[1731729458832,0.3608,91333.0,91332.0,0.01710911]
[1731729459922,0.3608,91333.0,91327.0,0.4663898]
[1731729460132,0.3608,91333.0,91328.0,0.01710917]
[1731729460339,0.3608,91333.0,91332.0,0.19644493]
[1731729460539,0.3608,91333.0,91327.0,0.20437838]
[1731729460843,0.3608,91333.0,91328.0,0.0171095]
[1731729461048,0.3608,91333.0,91327.0,0.40082331]
[1731729461246,0.3608,91333.0,91327.0,0.20437838]
[1731729461445,0.3608,91333.0,91327.0,0.00217]
[1731729462848,0.0328,91332.0,91327.0,0.00217]
[1731729465448,0.0328,91332.0,91317.0,0.19644493]
[1731729465647,0.0328,91332.0,91323.0,0.01711051]
[1731729465850,0.0328,91332.0,91324.0,0.01711051]
[1731729466147,0.0328,91332.0,91325.0,0.01711051]
[1731729466351,0.3608,91327.0,91325.0,0.01711051]
[1731729466646,0.3608,91327.0,91317.0,0.0051]
[1731729466948,0.3608,91318.0,91313.0,0.09864]
[1731729469039,0.3608,91318.0,91313.0,0.09868]
[1731729471351,0.3608,91318.0,91310.0,0.04316293]
[1731729471751,0.3608,91318.0,91312.0,0.09868]
[1731729472156,0.3608,91318.0,91310.0,0.04316293]
[1731729472456,0.3608,91318.0,91311.0,0.09868]
[1731729473551,0.3608,91318.0,91310.0,0.04316293]
[1731729473756,0.3608,91318.0,91312.0,0.09868]
[1731729474846,0.3608,91318.0,91315.0,0.0171123]
[1731729475147,0.3608,91318.0,91312.0,0.09868]
[1731729475547,0.3608,91318.0,91315.0,0.01711247]
[1731729475758,0.3608,91318.0,91316.0,0.01711247]
[1731729476061,0.3608,91318.0,91312.0,0.09868]
[1731729476356,0.3608,91318.0,91312.0,0.19644493]
[1731729476550,0.3608,91318.0,91312.0,0.29440493]
[1731729476856,0.3608,91318.0,91312.0,0.09796]
[1731729477252,0.3608,91318.0,91312.0,0.29440493]
[1731729477645,0.3608,91318.0,91312.0,0.09796]
[1731729477849,0.3608,91318.0,91312.0,0.29440493]
[1731729478448,0.3608,91318.0,91313.0,0.19644493]
[1731729478858,0.3608,91318.0,91312.0,0.09796]
[1731729479461,0.3608,91318.0,91313.0,0.19644493]
[1731729479958,0.3608,91318.0,91314.0,0.19655587]
[1731729480158,0.3608,91318.0,91314.0,0.00011094]
[1731729480553,0.3659,91326.0,91314.0,0.26212236]
[1731729480859,0.3659,91326.0,91323.0,0.19636885]
[1731729481058,0.3608,91326.0,91324.0,0.22746885]
[1731729481356,0.3608,91326.0,91325.0,0.09796]
[1731729482363,0.3608,91326.0,91324.0,0.0311]
[1731729482654,0.3608,91326.0,91320.0,0.26201142]
[1731729482861,0.3608,91326.0,91320.0,0.09796]
[1731729483050,0.0322,91325.0,91320.0,0.09796]
[1731729485153,0.0322,91325.0,91321.0,0.0171119]
[1731729485355,0.0322,91325.0,91322.0,0.0171119]
[1731729485555,0.0322,91325.0,91323.0,0.01711182]
[1731729485761,0.0322,91325.0,91324.0,0.01711197]
[1731729486062,0.0322,91325.0,91324.0,0.03422397]
[1731729488652,0.0322,91325.0,91324.0,0.01711197]
[1731729488867,0.0322,91325.0,91324.0,0.03422396]
[1731729489257,0.0322,91325.0,91324.0,0.03422374]
[1731729489765,0.0322,91325.0,91324.0,0.05133571]
[1731729489962,0.0322,91325.0,91324.0,0.03422394]
[1731729490863,0.0322,91325.0,91324.0,0.01711197]
[1731729493564,0.0322,91325.0,91324.0,0.2136298]
[1731729494272,0.3608,91326.0,91324.0,0.01711197]
[1731729494471,0.3608,91326.0,91325.0,0.19689358]
[1731729495257,0.68928,91326.0,91324.0,0.01711197]
[1731729495456,0.32848,91325.0,91324.0,0.01711197]
[1731729495865,0.05323449,91325.0,91324.0,0.01711197]
[1731729496473,0.52419159,91326.0,91324.0,0.01711197]
[1731729496671,0.3608,91326.0,91324.0,0.21402104]
[1731729496860,0.3608,91326.0,91324.0,0.01711197]
[1731729497769,0.3608,91326.0,91325.0,0.19690347]
[1731729498273,0.3608,91326.0,91324.0,0.21401544]
[1731729498464,0.3608,91326.0,91325.0,0.19690347]
[1731729498663,0.3608,91326.0,91324.0,0.01711197]
[1731729498867,0.3608,91326.0,91325.0,0.19690342]
[1731729499267,0.3608,91326.0,91322.0,0.24051752]
[1731729499467,0.3608,91326.0,91323.0,0.19690342]
[1731729499669,0.3608,91326.0,91318.0,0.29463796]
[1731729499670,0.16339159,91330.0,91325.0,0.19690342]
[1731729500074,0.16339159,91333.0,91328.0,0.19690342]
[1731729500269,0.16339159,91333.0,91329.0,0.19690342]
[1731729500462,0.16339159,91334.0,91329.0,0.19690342]
[1731729500664,0.16339159,91335.0,91330.0,0.19690342]
[1731729500867,0.3608,91336.0,91332.0,0.19690342]
[1731729501463,0.3608,91336.0,91326.0,0.26253796]
[1731729501464,0.3608,91336.0,91331.0,0.19690342]
[1731729501663,0.3608,91336.0,91332.0,0.19690342]
[1731729501970,0.3608,91336.0,91333.0,0.01710966]
[1731729502174,0.3608,91336.0,91334.0,0.01710966]
[1731729502673,0.3608,91336.0,91335.0,0.01710966]
[1731729502877,0.524242,91336.0,91335.0,0.01710966]
[1731729503477,0.3608,91336.0,91335.0,0.01710966]
[1731729503868,0.41402629,91336.0,91335.0,0.01710966]
[1731729504577,0.3608,91336.0,91327.0,0.19690342]
[1731729504878,0.3608,91328.0,91323.0,0.09796]
[1731729505072,0.13077171,91327.0,91324.0,0.04448759]
[1731729505582,0.13077171,91326.0,91325.0,0.04448759]
[1731729505781,0.3608,91328.0,91325.0,0.30702555]
[1731729505968,0.3608,91328.0,91327.0,0.36610634]
[1731729506280,0.36140001,91336.0,91327.0,0.13778695]
[1731729506477,0.3608,91336.0,91331.0,0.26234986]
[1731729506680,0.3608,91336.0,91332.0,0.04921061]
[1731729506875,0.3608,91336.0,91334.0,0.19673309]
[1731729507073,0.49157171,91336.0,91335.0,0.04821061]
[1731729507986,0.3608,91336.0,91335.0,0.07558759]
[1731729508486,0.3608,91336.0,91335.0,0.07558354]
[1731729510273,0.3608,91336.0,91335.0,0.0311]
[1731729510583,0.3608,91336.0,91335.0,0.07558286]
[1731729510782,0.3608,91336.0,91335.0,0.12019869]
[1731729513984,0.3608,91336.0,91335.0,0.3167964]
[1731729514184,0.3608,91336.0,91335.0,0.12019869]
[1731729515288,0.3608,91336.0,91335.0,0.12019665]
[1731729515582,0.3608,91336.0,91335.0,0.07571583]
[1731729515785,0.3608,91336.0,91335.0,0.12019665]
[1731729517185,0.3608,91336.0,91335.0,0.38254651]
[1731729517373,0.3608,91336.0,91335.0,0.3551737]
[1731729517576,0.3608,91336.0,91335.0,0.09282384]
[1731729518477,0.3608,91336.0,91335.0,0.2893581]
[1731729518683,0.3608,91336.0,91335.0,0.01710801]
[1731729520086,0.3608,91336.0,91332.0,0.19653385]
[1731729520297,0.3608,91336.0,91333.0,0.01710959]
[1731729520488,0.3608,91336.0,91334.0,0.01710959]
[1731729520685,0.3608,91336.0,91335.0,0.01710959]
[1731729521990,0.3608,91336.0,91335.0,0.01710978]
[1731729522197,0.52424742,91336.0,91335.0,0.01710978]
[1731729522381,0.3608,91336.0,91335.0,0.01710999]
[1731729522693,0.52419926,91336.0,91335.0,0.01710999]
[1731729522994,0.3608,91336.0,91335.0,0.01710999]
[1731729523193,0.52419885,91336.0,91335.0,0.01710999]
[1731729523496,0.3608,91336.0,91335.0,0.01710999]
[1731729523988,0.52421789,91336.0,91335.0,0.01710999]
[1731729524184,0.3608,91336.0,91335.0,0.01710999]
[1731729524592,0.3608,91336.0,91335.0,0.04448521]
[1731729524792,0.52424432,91336.0,91335.0,0.04448521]
[1731729525491,0.3608,91336.0,91335.0,0.04448567]
[1731729525696,0.52424432,91336.0,91335.0,0.04448567]
[1731729525996,0.52424432,91336.0,91335.0,0.044485]
[1731729526387,0.3608,91336.0,91335.0,0.044485]
[1731729526607,0.3608,91336.0,91335.0,0.07870291]
[1731729526785,0.55600134,91347.0,91335.0,0.07870291]
[1731729526786,0.09662117,91337.0,91335.0,0.32553518]
[1731729527096,0.36136001,91347.0,91336.0,0.51237588]
[1731729527395,0.3608,91347.0,91346.0,0.26471506]
[1731729527695,0.3608,91347.0,91346.0,0.14667474]
[1731729528891,0.0051,91360.0,91346.0,0.18223189]
[1731729529091,0.36136001,91365.0,91356.0,0.19665955]
[1731729529302,0.0301,91364.0,91358.0,0.19665955]
[1731729529488,0.0301,91364.0,91359.0,0.24114455]
[1731729529688,0.0301,91364.0,91360.0,0.24114455]
[1731729529887,0.0301,91364.0,91361.0,0.044485]
[1731729530098,0.0301,91364.0,91362.0,0.044485]
[1731729530395,0.0301,91364.0,91363.0,0.044485]
[1731729532501,0.0301,91364.0,91357.0,0.19665955]
[1731729532700,0.0301,91364.0,91358.0,0.21376444]
[1731729532895,0.0301,91364.0,91359.0,0.01710489]
[1731729533099,0.0301,91364.0,91353.0,0.09852]
[1731729533100,0.16344432,91382.0,91363.0,0.10352898]
[1731729533401,0.0051,91382.0,91372.0,0.19641546]
[1731729533696,0.3608,91383.0,91373.0,0.19641546]
[1731729534088,0.3608,91383.0,91372.0,0.19641546]
[1731729534394,0.3608,91383.0,91373.0,0.01710259]
[1731729534590,0.3608,91383.0,91374.0,0.01710259]
[1731729534790,0.3608,91383.0,91375.0,0.01710259]
[1731729534991,0.3608,91383.0,91376.0,0.01710259]
[1731729535193,0.3608,91383.0,91377.0,0.01710259]
[1731729535404,0.3608,91383.0,91371.0,0.29493546]
[1731729535601,0.0051,91391.0,91381.0,0.19641546]
[1731729535905,0.03,91392.0,91387.0,0.10352898]
[1731729536093,0.03,91392.0,91388.0,0.01710161]
[1731729536293,0.3608,91394.0,91387.0,0.10352898]
[1731729536906,0.36136001,91394.0,91387.0,0.10352898]
[1731729537200,0.00056001,91394.0,91387.0,0.10352898]
[1731729537400,0.26344432,91400.0,91387.0,0.10352898]
[1731729537605,0.1,91400.0,91387.0,0.10352898]
[1731729538197,0.1,91400.0,91394.0,0.10352898]
[1731729539996,0.1,91400.0,91384.0,0.0051]
[1731729540194,0.3608,91388.0,91380.0,0.09892]
[1731729540399,0.3608,91388.0,91381.0,0.01709935]
[1731729540601,0.3608,91388.0,91378.0,0.10352898]
[1731729540803,0.3608,91388.0,91379.0,0.11602006]
[1731729541007,0.3608,91388.0,91380.0,0.01710006]
[1731729541312,0.3608,91388.0,91376.0,0.04324912]
[1731729541504,0.032,91387.0,91377.0,0.11601981]
[1731729541703,0.032,91387.0,91378.0,0.01709981]
[1731729541901,0.032,91387.0,91375.0,0.10352898]
[1731729542099,0.032,91387.0,91376.0,0.01710047]
[1731729542411,0.032,91387.0,91377.0,0.01710047]
[1731729542611,0.032,91387.0,91378.0,0.01710047]
[1731729542799,0.032,91387.0,91373.0,0.09892]
[1731729542800,0.3608,91379.0,91373.0,0.09892]
[1731729543104,0.3608,91379.0,91374.0,0.01710069]
[1731729543405,0.0326,91378.0,91375.0,0.01710069]
[1731729543612,0.0326,91378.0,91370.0,0.10482182]
[1731729543813,0.0326,91378.0,91371.0,0.01710089]
[1731729544005,0.0326,91378.0,91372.0,0.01710089]
[1731729544310,0.0326,91378.0,91368.0,0.14225715]
[1731729544504,0.0326,91378.0,91370.0,0.01710191]
[1731729544704,0.0326,91378.0,91371.0,0.01710189]
[1731729544906,0.0326,91378.0,91372.0,0.01710189]
[1731729545210,0.0326,91378.0,91369.0,0.0325]
[1731729545405,0.0326,91378.0,91367.0,0.09892]
[1731729545406,0.3608,91371.0,91370.0,0.0171019]
[1731729546002,0.3608,91371.0,91366.0,0.20244898]
[1731729546203,0.3608,91371.0,91367.0,0.01710246]
[1731729546415,0.3608,91371.0,91366.0,0.10352898]
[1731729546604,0.3608,91371.0,91367.0,0.01710247]
[1731729546808,0.3608,91371.0,91366.0,0.10352898]
[1731729547109,0.3608,91371.0,91367.0,0.01710232]
[1731729547411,0.3608,91371.0,91368.0,0.01710211]
[1731729547608,0.3608,91371.0,91366.0,0.10352898]
[1731729547809,0.3608,91371.0,91367.0,0.0171022]
[1731729548001,0.3608,91371.0,91366.0,0.10352898]
[1731729548313,0.3608,91371.0,91367.0,0.0171022]
[1731729548606,0.3608,91371.0,91368.0,0.01710216]
[1731729548803,0.3608,91371.0,91369.0,0.01710216]
[1731729548997,0.3608,91371.0,91370.0,0.01710216]
[1731729550303,0.46432898,91371.0,91370.0,0.01710216]
[1731729550511,0.46432898,91371.0,91354.0,0.0051]
[1731729550512,0.68912,91371.0,91354.0,0.0051]
[1731729550701,0.68912,91371.0,91349.0,0.10482142]
[1731729550702,0.3608,91355.0,91349.0,0.10482142]
[1731729550901,0.3608,91355.0,91354.0,0.01710532]
[1731729554818,0.04449678,91368.0,91354.0,0.01710532]
[1731729554819,0.3608,91359.0,91354.0,0.02736776]
[1731729555014,0.3608,91359.0,91354.0,0.07867997]
[1731729555203,0.3608,91359.0,91354.0,0.04447251]
[1731729555405,0.3608,91359.0,91355.0,0.01710481]
[1731729555612,0.3608,91359.0,91356.0,0.04447251]
[1731729555816,0.3608,91359.0,91357.0,0.04447251]
[1731729556112,0.3608,91359.0,91358.0,0.04447251]
[1731729558120,0.3608,91359.0,91358.0,0.24074689]
[1731729558411,0.7216,91359.0,91358.0,0.24074689]
[1731729558613,0.7216,91359.0,91358.0,0.24076579]
[1731729559214,0.3608,91359.0,91358.0,0.24076261]
[1731729559413,0.3608,91359.0,91358.0,0.04447134]
[1731729560516,0.3608,91359.0,91358.0,0.02736698]
[1731729560717,0.3608,91359.0,91358.0,0.1963007]
[1731729561021,0.3608,91359.0,91358.0,0.21340557]
[1731729561222,0.3608,91359.0,91358.0,0.24077231]
[1731729561424,0.7216,91359.0,91358.0,0.01710487]
[1731729562515,0.7216,91359.0,91353.0,0.00164153]
[1731729562719,0.0624,91358.0,91353.0,0.00164153]
[1731729562923,0.0624,91358.0,91354.0,0.01710708]
[1731729563225,0.0624,91358.0,91355.0,0.01710708]
[1731729563418,0.0624,91358.0,91356.0,0.01710708]
[1731729563623,0.0624,91358.0,91357.0,0.01710704]
[1731729564322,0.0624,91358.0,91353.0,0.00164153]
[1731729564520,0.0624,91358.0,91354.0,0.01710697]
[1731729564719,0.0624,91358.0,91355.0,0.01710697]
[1731729564923,0.0624,91358.0,91356.0,0.01710697]
[1731729565120,0.0624,91358.0,91357.0,0.01710682]
[1731729565421,0.0624,91358.0,91353.0,0.00164153]
[1731729565621,0.0624,91358.0,91354.0,0.01710682]
[1731729565829,0.0624,91358.0,91355.0,0.01710682]
[1731729566030,0.0624,91358.0,91356.0,0.01710676]
[1731729566224,0.0624,91358.0,91357.0,0.01710676]
[1731729566521,0.0624,91358.0,91357.0,0.01710677]
[1731729569617,0.0624,91358.0,91353.0,0.00164153]
[1731729570127,0.0624,91358.0,91354.0,0.01710669]
[1731729570423,0.0624,91358.0,91355.0,0.01710669]
[1731729570624,0.0624,91358.0,91356.0,0.01710669]
[1731729570922,0.0624,91358.0,91353.0,0.00164153]
[1731729571133,0.0624,91358.0,91354.0,0.0171071]
[1731729571422,0.0624,91358.0,91355.0,0.0171071]
[1731729571628,0.0624,91358.0,91356.0,0.0171071]
[1731729571828,0.0624,91358.0,91353.0,0.00164153]
[1731729572128,0.10352898,91356.0,91342.0,0.0051]
[1731729572320,0.3608,91343.0,91340.0,0.19629965]
[1731729572518,0.3608,91343.0,91341.0,0.21340747]
[1731729572829,0.3608,91343.0,91342.0,0.01710782]
[1731729573222,0.3608,91343.0,91335.0,0.04311663]
[1731729573426,0.3608,91343.0,91342.0,0.01710823]
[1731729573633,0.3608,91343.0,91336.0,0.01710823]
[1731729573831,0.0323,91342.0,91337.0,0.01710878]
[1731729574033,0.0323,91342.0,91330.0,0.26526357]
[1731729574034,0.0323,91342.0,91338.0,0.01710878]
[1731729574327,0.0323,91342.0,91339.0,0.01710878]
[1731729574524,0.0323,91342.0,91330.0,0.0449463]
[1731729574831,0.3608,91331.0,91330.0,0.0449463]
[1731729575030,0.3608,91331.0,91330.0,0.06205658]
[1731729575223,0.3608,91331.0,91330.0,0.01875271]
[1731729576131,0.3608,91331.0,91330.0,0.00164243]
[1731729577848,0.3608,91331.0,91330.0,0.01875335]
[1731729587047,0.3608,91331.0,91330.0,0.01875342]
[1731729587452,0.3608,91331.0,91330.0,0.01875335]
[1731729590347,0.3608,91331.0,91330.0,0.00164243]
[1731729590548,0.3608,91331.0,91316.0,0.0051]
[1731729590747,0.06799318,91317.0,91314.0,0.00011094]
[1731729590952,0.06799318,91317.0,91315.0,0.01711253]
[1731729591148,0.06799318,91317.0,91316.0,0.01711253]
[1731729592051,0.06799318,91317.0,91314.0,0.00011094]
[1731729592750,0.82581791,91318.0,91314.0,0.00011094]
[1731729592953,0.8252579,91318.0,91314.0,0.00011094]
[1731729594850,0.8702045,91318.0,91314.0,0.00011094]
[1731729595159,0.7665466,91318.0,91314.0,0.00011094]
[1731729598354,0.7665466,91318.0,91315.0,0.01711481]
[1731729598561,0.7665466,91318.0,91316.0,0.01711481]
[1731729598748,0.7665466,91318.0,91314.0,0.00011094]
[1731729598949,0.7665466,91318.0,91315.0,0.01711431]
[1731729599151,0.7665466,91318.0,91316.0,0.01711431]
[1731729599351,0.7665466,91318.0,91314.0,0.00011094]
[1731729599554,0.7665466,91318.0,91315.0,0.01711473]
[1731729599862,0.7665466,91318.0,91316.0,0.01711473]
[1731729600056,0.7665466,91318.0,91317.0,0.01711473]
[1731729602451,0.7665466,91318.0,91314.0,0.00011094]
[1731729602651,0.1036579,91315.0,91314.0,0.00011094]
[1731729603360,0.15689938,91315.0,91314.0,0.00011094]
[1731729603562,0.15699428,91315.0,91314.0,1.604e-05]
[1731729604750,0.15699434,91315.0,91314.0,1.604e-05]
[1731729607168,0.15699434,91315.0,91285.0,0.00591936]
[1731729607169,0.3608,91309.0,91285.0,0.00591936]
[1731729607358,0.8252579,91286.0,91277.0,0.00169]
[1731729607558,0.3608,91278.0,91277.0,0.00169]
[1731729608067,0.49118643,91278.0,91277.0,0.00169]
[1731729608367,0.3608,91278.0,91277.0,0.00169]
[1731729608563,0.49108397,91278.0,91277.0,0.00169]
[1731729608764,0.3608,91278.0,91277.0,0.00169]
[1731729609064,0.49108397,91278.0,91277.0,0.00169]
[1731729609365,0.3608,91278.0,91277.0,0.00169]
[1731729611655,0.46456884,91278.0,91277.0,0.00169]
[1731729612267,0.79324884,91278.0,91259.0,0.03]
[1731729612576,0.3608,91261.0,91259.0,0.03]
[1731729613159,0.3608,91261.0,91254.0,0.0657]
[1731729613860,0.3608,91261.0,91253.0,9.9e-05]
[1731729613861,0.4644579,91261.0,91253.0,9.9e-05]
[1731729614769,0.4644579,91254.0,91253.0,9.9e-05]
[1731729615065,0.36087695,91254.0,91234.0,0.0315]
[1731729615265,0.3608,91235.0,91234.0,0.0315]
[1731729616870,0.3608,91235.0,91228.0,0.0315]
[1731729617064,0.1036579,91229.0,91216.0,0.0939]
[1731729617264,0.1036579,91229.0,91217.0,0.01712907]
[1731729617563,0.1036579,91229.0,91218.0,0.01712907]
[1731729618075,0.1036579,91229.0,91216.0,0.0939]
[1731729618264,0.1036579,91229.0,91217.0,0.00426426]
[1731729618462,0.1036579,91229.0,91218.0,0.00426426]
[1731729618770,0.3608,91235.0,91218.0,0.00426426]
[1731729618968,0.3608,91235.0,91219.0,0.00426426]
[1731729619165,0.3608,91235.0,91220.0,0.00426426]
[1731729619365,0.3608,91235.0,91216.0,0.0939]
[1731729619560,0.3608,91235.0,91217.0,0.0042711]
[1731729619862,0.3608,91235.0,91216.0,0.0939]
[1731729619863,0.3608,91235.0,91218.0,0.0042711]
[1731729620063,0.3608,91235.0,91216.0,0.0939]
[1731729620064,0.3608,91227.0,91216.0,0.0939]
[1731729620662,0.3608,91227.0,91224.0,0.1036579]
[1731729621063,0.3608,91235.0,91224.0,0.1036579]
[1731729621270,0.3608,91246.0,91234.0,0.1036579]
[1731729621465,0.3608,91246.0,91235.0,0.19242]
[1731729621669,0.3608,91246.0,91242.0,0.1036579]
[1731729622168,0.3608,91246.0,91243.0,0.02150166]
[1731729622374,7.695e-05,91254.0,91244.0,0.09596]
[1731729622569,7.695e-05,91254.0,91245.0,0.00437655]
[1731729622870,7.695e-05,91254.0,91246.0,0.00709021]
[1731729623270,7.695e-05,91254.0,91247.0,0.00709021]
[1731729623464,7.695e-05,91254.0,91249.0,0.1036579]
[1731729623669,7.695e-05,91254.0,91250.0,0.00709021]
[1731729623866,7.695e-05,91254.0,91251.0,0.02421484]
[1731729624269,7.695e-05,91254.0,91252.0,0.01712463]
[1731729624476,7.695e-05,91254.0,91253.0,0.01712463]
[1731729625372,7.695e-05,91254.0,91253.0,0.11308463]
[1731729625578,7.695e-05,91254.0,91253.0,0.45354729]
[1731729625782,0.00674425,91261.0,91253.0,0.480944]
[1731729626080,0.00164425,91261.0,91256.0,0.1036579]
[1731729626280,0.00164425,91261.0,91257.0,0.152824]
[1731729626577,0.0051,91268.0,91258.0,0.01170266]
[1731729626789,0.033,91280.0,91259.0,0.01712207]
[1731729626790,9.235e-05,91265.0,91259.0,0.01712207]
[1731729627080,9.235e-05,91265.0,91260.0,0.04451784]
[1731729627275,9.235e-05,91265.0,91261.0,0.04451784]
[1731729627481,9.235e-05,91265.0,91262.0,0.04451705]
[1731729627684,9.235e-05,91265.0,91263.0,0.04451705]
[1731729627981,9.235e-05,91265.0,91264.0,0.01712207]
[1731729628182,9.235e-05,91265.0,91257.0,0.14053836]
[1731729628384,9.235e-05,91265.0,91264.0,0.1036579]
[1731729628582,0.0051,91273.0,91264.0,0.06976038]
[1731729628786,0.3608,91274.0,91265.0,0.16768038]
[1731729629082,0.3608,91274.0,91266.0,0.15416018]
[1731729629279,0.3608,91274.0,91267.0,0.01712169]
[1731729629483,0.3608,91274.0,91268.0,0.01712169]
[1731729629686,0.0051,91279.0,91269.0,0.0171215]
[1731729629687,4.064e-05,91273.0,91269.0,0.0171215]
[1731729629876,4.064e-05,91273.0,91270.0,0.0171215]
[1731729630076,4.064e-05,91273.0,91271.0,0.0171215]
[1731729630379,4.064e-05,91273.0,91272.0,0.0171215]
[1731729630581,4.064e-05,91273.0,91272.0,0.04451362]
[1731729631380,4.064e-05,91273.0,91272.0,0.04451408]
[1731729633487,4.064e-05,91273.0,91272.0,0.1678552]
[1731729634190,4.064e-05,91273.0,91272.0,0.14239408]
[1731729634484,4.064e-05,91273.0,91272.0,0.1678262]
[1731729634686,4.064e-05,91273.0,91272.0,0.11506479]
[1731729634885,4.064e-05,91273.0,91272.0,0.10332833]
[1731729635081,4.064e-05,91273.0,91272.0,0.04451408]
[1731729635281,0.10369854,91273.0,91272.0,0.0171215]
[1731729635591,4.064e-05,91273.0,91272.0,0.01712194]
[1731729636391,4.064e-05,91273.0,91264.0,0.043779]
[1731729636582,4.064e-05,91273.0,91272.0,0.01712209]
[1731729636784,4.064e-05,91273.0,91263.0,0.3608]
[1731729636982,4.064e-05,91273.0,91272.0,0.01712217]
[1731729637478,4.064e-05,91273.0,91264.0,0.11500217]
[1731729637777,4.064e-05,91273.0,91265.0,0.04451764]
[1731729637975,4.064e-05,91273.0,91266.0,0.04451764]
[1731729638177,4.064e-05,91273.0,91267.0,0.04451764]
[1731729638380,4.064e-05,91273.0,91268.0,0.01712208]
[1731729638586,4.064e-05,91273.0,91269.0,0.01712208]
[1731729638773,4.064e-05,91273.0,91270.0,0.01712208]
[1731729638977,4.064e-05,91273.0,91271.0,0.01712208]
[1731729639178,4.064e-05,91273.0,91272.0,0.37792208]
[1731729639380,4.064e-05,91273.0,91272.0,0.40531429]
[1731729640278,4.064e-05,91273.0,91272.0,0.01712208]
[1731729640891,4.064e-05,91273.0,91267.0,0.09788]
[1731729641094,4.064e-05,91273.0,91268.0,0.01712192]
[1731729641393,4.064e-05,91273.0,91272.0,0.1036579]
[1731729641594,4.064e-05,91273.0,91272.0,0.15243401]
[1731729642091,4.064e-05,91273.0,91272.0,0.18667054]
[1731729642597,4.064e-05,91273.0,91272.0,0.15243401]
[1731729643298,4.064e-05,91273.0,91272.0,0.15248593]
[1731729643493,4.064e-05,91273.0,91272.0,0.25036593]
[1731729644491,4.064e-05,91273.0,91272.0,0.29829855]
[1731729645388,4.064e-05,91273.0,91272.0,0.26406096]
[1731729646587,4.064e-05,91273.0,91272.0,0.24604299]
[1731729646791,4.064e-05,91273.0,91272.0,0.26404505]
[1731729647088,4.064e-05,91273.0,91272.0,0.25973676]
[1731729647289,0.0051,91284.0,91272.0,0.59270397]
[1731729647588,0.0313,91286.0,91283.0,0.4644579]
[1731729647797,0.0313,91286.0,91284.0,0.0487923]
[1731729647988,0.0313,91286.0,91283.0,0.4644579]
[1731729647989,0.0313,91286.0,91285.0,0.1466723]
[1731729648893,0.0051,91296.0,91285.0,0.16036564]
[1731729649092,0.0327,91298.0,91295.0,0.1036579]
[1731729649391,0.0327,91298.0,91296.0,0.01711734]
[1731729649599,0.0327,91298.0,91297.0,0.04450097]
[1731729649986,0.0327,91298.0,91297.0,0.04880458]
[1731729650185,0.0327,91298.0,91297.0,0.04450097]
[1731729651196,0.0327,91298.0,91297.0,0.04450234]
[1731729651586,0.0327,91298.0,91297.0,0.01711734]